bitfinex/quotes_ETHUSD_20251230
["timestamp","ask_amount","ask_price","bid_price","bid_amount"]
[1767099256395,2.4309,2979.3,2978.7,0.759567]
[1767099256601,2.4309,2979.3,2978.6,3.35724599]
[1767099257500,2.4309,2979.3,2978.6,3.35824599]
[1767099258006,2.2759,2979.1,2978.6,0.001]
[1767099258906,7.2014923,2978.8,2978.4,4.23846041]
[1767099259106,2.2759,2978.7,2978.4,4.23846041]
[1767099259305,2.2759,2978.7,2978.5,0.75960789]
[1767099259509,2.2759,2979.1,2978.5,0.75960789]
[1767099259713,2.2769,2979.6,2978.7,4.9255923]
[1767099259881,2.2769,2979.6,2978.8,3.35705653]
[1767099260301,2.2769,2979.6,2978.8,6.71411306]
[1767099260616,2.2769,2979.6,2978.9,0.45051594]
[1767099262492,2.2769,2979.6,2979.0,3.35683115]
[1767099262893,2.2769,2979.6,2978.9,0.45051594]
[1767099263089,2.2759,2979.4,2978.9,0.45051594]
[1767099266012,2.2759,2979.4,2978.9,3.80745395]
[1767099270916,0.001,2979.6,2978.9,7.16439778]
[1767099271123,2.2769,2979.6,2979.0,0.75001803]
[1767099272223,2.2769,2979.6,2979.0,4.10675252]
[1767099273723,0.001,2979.6,2979.0,7.46358367]
[1767099274022,0.001,2979.6,2979.0,7.43001536]
[1767099274200,0.001,2979.6,2979.2,3.3566058]
[1767099274941,0.001,2979.6,2979.1,3.87536497]
[1767099277740,2.2769,2979.6,2979.1,0.51866922]
[1767099277935,2.2769,2979.6,2979.0,4.07322644]
[1767099278232,2.2769,2979.6,2979.0,3.35677672]
[1767099279045,2.2769,2979.6,2979.1,3.39026767]
[1767099279220,0.001,2979.6,2979.1,3.39026767]
[1767099279543,0.001,2979.6,2979.1,3.35670049]
[1767099280248,2.2769,2979.6,2979.1,3.35670049]
[1767099281551,2.2769,2979.6,2978.7,6.71433846]
[1767099281723,2.2769,2979.6,2978.8,1.39004738]
[1767099282539,2.2759,2979.5,2978.8,1.39004738]
[1767099282741,2.2759,2979.4,2978.8,1.39004738]
[1767099283651,2.2759,2979.3,2978.9,3.35694383]
[1767099284827,4.9255923,2979.4,2978.9,3.35694383]
[1767099285152,4.9255923,2979.4,2978.9,4.16734737]
[1767099285352,2.2759,2979.5,2978.9,4.16734737]
[1767099287324,2.2759,2979.5,2978.9,3.35694383]
[1767099287753,2.2759,2979.5,2978.6,3.82889989]
[1767099287754,2.4178,2979.3,2978.8,3.35702291]
[1767099288051,2.4178,2979.3,2978.7,3.35716923]
[1767099290367,2.4178,2979.3,2978.6,3.35828194]
[1767099291541,2.4178,2979.3,2978.6,6.71556388]
[1767099291741,2.4178,2979.3,2978.8,3.35705653]
[1767099295857,4.9255923,2979.4,2978.8,3.35705653]
[1767099296226,7.3433923,2979.4,2978.8,3.35705653]
[1767099296558,2.4178,2979.4,2978.8,3.35705653]
[1767099297762,0.002,2979.3,2978.8,3.35705653]
[1767099297962,0.002,2979.3,2978.9,0.78567655]
[1767099298764,0.002,2979.3,2978.9,4.14253062]
[1767099299948,0.002,2979.3,2978.8,3.35701439]
[1767099300148,2.3866,2979.3,2978.9,3.35693513]
[1767099302867,2.3866,2979.3,2978.8,3.35705653]
[1767099312074,0.002,2979.3,2978.8,3.35705653]
[1767099325481,0.002,2979.3,2978.8,6.71411306]
[1767099325683,0.002,2979.3,2978.9,0.78566594]
[1767099325979,0.002,2979.3,2978.8,6.71411306]
[1767099334901,2.2964,2979.3,2978.8,3.35705653]
[1767099335591,0.002,2979.3,2978.8,3.35705653]
[1767099339229,2.2964,2979.3,2978.8,3.35705653]
[1767099339616,4.92351121,2979.2,2978.6,3.35822607]
[1767099339931,2.2944,2979.1,2978.6,3.35822607]
[1767099342354,2.2944,2979.1,2978.6,0.001]
[1767099349318,4.92351121,2979.2,2978.6,0.001]
[1767099351963,2.3836,2979.1,2978.6,0.001]
[1767099354466,0.73091112,2979.1,2978.5,3.35839466]
[1767099354765,2.3836,2979.0,2978.5,3.35839466]
[1767099354969,2.3836,2978.9,2978.4,1.34335632]
[1767099355269,2.3836,2978.9,2978.4,4.70083778]
[1767099355839,2.3836,2978.9,2978.5,0.001]
[1767099356141,2.3836,2978.9,2978.4,4.70083778]
[1767099356561,2.3836,2978.8,2978.4,4.70083778]
[1767099358670,4.92537885,2978.7,2978.2,0.881]
[1767099358835,2.4668,2978.6,2978.2,3.35768088]
[1767099359037,2.4668,2978.6,2978.2,5.67188088]
[1767099363467,2.4668,2978.6,2978.3,2.3142]
[1767099365183,2.4668,2978.6,2978.3,5.67173065]
[1767099370791,2.4668,2978.6,2978.3,5.67273065]
[1767099371107,2.4688,2978.6,2978.3,5.67273065]
[1767099371293,2.4688,2978.6,2978.3,6.5758718]
[1767099372376,0.002,2978.6,2978.4,2.3142]
[1767099372577,0.002,2978.6,2978.3,4.2616718]
[1767099373075,2.4688,2978.6,2978.3,6.5758718]
[1767099380419,2.4688,2978.6,2978.3,5.67273065]
[1767099382424,0.002,2978.6,2978.4,2.4783]
[1767099384317,2.4328,2978.8,2978.4,5.83574263]
[1767099384636,2.4328,2979.0,2978.4,3.35744263]
[1767099385836,2.4328,2979.0,2978.4,5.83574263]
[1767099387133,0.002,2978.6,2978.4,5.83574263]
[1767099387335,2.4348,2978.6,2978.4,4.466e-05]
[1767099387525,2.4348,2978.6,2978.3,0.001]
[1767099387716,2.4348,2978.6,2978.3,2.4793]
[1767099388511,2.4348,2978.6,2978.4,3.35750273]
[1767099393348,0.002,2978.6,2978.4,3.35750273]
[1767099394844,0.002,2978.6,2978.3,2.4793]
[1767099397736,2.4328,2979.0,2978.5,2.4783]
[1767099400060,2.4348,2979.0,2978.6,2.4783]
[1767099404859,2.4348,2979.0,2978.6,5.83556773]
[1767099405863,2.4348,2979.0,2978.6,2.4783]
[1767099406163,2.4348,2979.0,2978.6,5.83557241]
[1767099406861,0.002,2979.0,2978.6,2.4783]
[1767099407243,2.4457,2979.0,2978.6,2.4783]
[1767099408062,2.4457,2979.0,2978.6,3.1871]
[1767099409564,2.4457,2979.0,2978.6,6.544379]
[1767099411865,2.4457,2979.0,2978.6,3.1871]
[1767099412449,2.4457,2979.0,2978.6,6.54438054]
[1767099412650,2.4457,2979.0,2978.6,3.1871]
[1767099414964,2.4457,2979.0,2978.6,6.54433748]
[1767099415782,2.4457,2979.0,2978.6,3.1871]
[1767099418457,2.4457,2979.0,2978.6,6.54437932]
[1767099419181,2.4457,2979.0,2978.6,6.54435956]
[1767099419973,2.4457,2979.0,2978.6,3.1871]
[1767099420970,2.4457,2979.0,2978.6,6.54438024]
[1767099421172,2.4457,2979.0,2978.7,2.2886]
[1767099424094,2.69047,2979.0,2978.6,0.7088]
[1767099424299,2.69047,2979.0,2978.5,2.2896]
[1767099425370,2.69047,2979.0,2978.5,0.001]
[1767099427281,2.4457,2979.0,2978.5,0.001]
[1767099427999,2.4457,2979.0,2978.5,2.2896]
[1767099428399,2.4457,2979.0,2978.5,5.64698561]
[1767099431120,2.4457,2979.0,2978.5,2.2896]
[1767099431617,2.4457,2979.0,2978.5,0.001]
[1767099431819,2.3112,2978.8,2978.5,0.001]
[1767099435018,2.3112,2978.8,2978.4,2.2886]
[1767099435215,2.3112,2978.8,2978.3,3.35856114]
[1767099436318,2.3112,2978.8,2978.3,5.64896114]
[1767099436710,2.3112,2978.8,2978.4,2.2904]
[1767099436903,2.3112,2978.8,2978.4,3.19105813]
[1767099437421,2.3112,2978.8,2978.5,2.2904]
[1767099437624,0.002,2979.0,2978.5,2.2904]
[1767099437625,2.4038,2979.0,2978.5,2.2904]
[1767099438423,2.4038,2979.0,2978.3,0.001]
[1767099438631,2.4038,2979.0,2978.4,2.2904]
[1767099439536,2.4038,2979.0,2978.4,5.64786362]
[1767099447820,2.4038,2979.0,2978.4,5.64886362]
[1767099449744,2.4038,2979.0,2978.5,2.2904]
[1767099462979,2.4038,2979.0,2978.5,5.64778241]
[1767099463583,2.4038,2979.0,2978.5,2.2904]
[1767099464390,2.4038,2979.2,2978.5,2.51964]
[1767099465582,2.4038,2979.0,2978.6,2.2904]
[1767099466784,2.4038,2979.0,2978.4,3.35845213]
[1767099467086,2.4038,2979.0,2978.5,2.4308]
[1767099479896,2.4038,2979.0,2978.5,5.78819188]
[1767099480396,2.4038,2979.0,2978.6,2.269]
[1767099480596,0.002,2979.0,2978.6,2.269]
[1767099481985,0.002,2979.0,2978.7,2.269]
[1767099482699,0.002,2979.0,2978.7,2.30257169]
[1767099483568,0.002,2979.0,2978.7,2.269]
[1767099493006,0.002,2979.0,2978.7,5.62616764]
[1767099493217,0.002,2979.0,2978.7,2.269]
[1767099494302,2.3228,2979.0,2978.7,2.269]
[1767099496517,2.3228,2979.0,2978.6,0.001]
[1767099496697,2.55528,2979.0,2978.6,0.001]
[1767099497308,2.3228,2979.0,2978.6,0.001]
[1767099497498,2.3228,2979.0,2978.6,5.84457757]
[1767099497686,2.3228,2979.0,2978.6,2.4873]
[1767099497891,2.3228,2979.0,2978.6,5.84457504]
[1767099498190,2.3228,2979.0,2978.6,2.4873]
[1767099498588,2.3228,2979.0,2978.6,5.84457876]
[1767099499418,2.3228,2979.0,2978.6,2.4873]
[1767099499923,2.3228,2979.0,2978.6,5.84454587]
[1767099501194,2.3228,2979.0,2978.6,2.4873]
[1767099502293,2.55528,2979.0,2978.6,2.4873]
[1767099502799,2.55528,2979.0,2978.3,0.001]
[1767099502800,2.55528,2979.0,2978.3,3.3585706]
[1767099504304,2.55528,2979.0,2978.3,5.8448706]
[1767099504819,2.3228,2979.0,2978.3,5.8448706]
[1767099505329,2.3228,2979.0,2978.3,3.3585706]
[1767099505495,2.3228,2979.0,2978.4,2.4863]
[1767099507315,2.3228,2979.0,2978.4,5.84375566]
[1767099509202,2.3228,2979.0,2978.5,2.4863]
[1767099510531,2.3228,2979.0,2978.5,5.84367505]
[1767099511925,2.3228,2979.0,2978.5,2.4863]
[1767099525336,2.3228,2979.0,2978.5,5.84367213]
[1767099528213,2.3228,2979.0,2978.5,3.35737213]
[1767099528415,2.3228,2979.0,2978.6,2.3918]
[1767099530440,2.3228,2979.0,2978.7,2.3918]
[1767099533838,2.3228,2979.0,2978.7,5.74896742]
[1767099535050,2.3228,2979.0,2978.7,2.3918]
[1767099535246,2.3228,2979.0,2978.7,5.74896659]
[1767099535448,2.3184,2979.6,2978.9,2.3918]
[1767099537152,2.3184,2979.6,2978.7,10.10505505]
[1767099537153,0.001,2979.6,2979.2,3.3566058]
[1767099537349,0.001,2979.6,2979.3,2.3918]
[1767099537954,2.3184,2979.6,2979.3,2.3918]
[1767099542025,2.3184,2979.6,2979.1,2.3306]
[1767099545463,2.3184,2979.6,2979.1,5.68731692]
[1767099545757,2.3184,2979.6,2979.2,2.3306]
[1767099545962,2.3184,2979.6,2979.2,5.6871466]
[1767099546163,2.3184,2979.6,2979.3,2.3306]
[1767099549042,1.467,2980.1,2979.5,2.3306]
[1767099550361,1.467,2980.1,2979.4,3.35638047]
[1767099550362,1.467,2980.1,2979.6,3.35615518]
[1767099550545,1.467,2980.1,2979.7,2.3306]
[1767099550944,1.467,2980.3,2979.7,2.3306]
[1767099551142,1.469,2980.4,2979.7,2.3306]
[1767099551347,1.469,2980.4,2979.8,2.3306]
[1767099552677,0.002,2980.1,2979.9,3.3558173]
[1767099552876,0.002,2980.1,2980.0,2.3306]
[1767099553255,1.469,2980.4,2980.0,2.3306]
[1767099555182,1.469,2980.4,2980.0,5.68629508]
[1767099555865,1.469,2980.4,2980.0,5.71984508]
[1767099556571,1.469,2980.4,2980.0,2.36415]
[1767099557583,1.469,2980.4,2980.0,5.71984756]
[1767099558758,1.469,2980.4,2980.1,2.2643]
[1767099560675,0.001,2980.5,2980.1,2.2643]
[1767099560991,1.472,2980.5,2980.0,2.29785]
[1767099568193,1.472,2980.5,2980.0,2.29885]
[1767099584311,0.001,2980.5,2980.0,2.29885]
[1767099586110,0.002,2980.8,2980.1,2.3462]
[1767099586287,0.56947503,2980.7,2980.1,2.3462]
[1767099588404,2.90747503,2980.7,2980.1,2.3462]
[1767099588603,2.338,2980.7,2980.1,2.3462]
[1767099592095,3.34491921,2981.1,2980.2,2.3462]
[1767099592299,2.338,2981.1,2980.4,2.3462]
[1767099592685,0.002,2980.7,2980.4,2.3462]
[1767099599219,2.357,2980.7,2980.3,0.881]
[1767099600296,2.357,2980.7,2980.4,0.881]
[1767099600496,2.357,2980.7,2980.1,3.35551639]
[1767099600696,2.357,2980.7,2980.1,5.80281639]
[1767099601021,2.357,2980.7,2980.2,5.80277025]
[1767099602226,2.357,2980.7,2980.2,2.4473]
[1767099602833,2.357,2980.7,2980.2,5.80276808]
[1767099603426,2.357,2980.7,2980.2,2.4473]
[1767099607428,1.4395,2980.3,2979.6,2.4473]
[1767099607633,6.35798101,2980.2,2979.6,2.4473]
[1767099607808,1.4395,2980.2,2979.7,2.4473]
[1767099611221,1.4395,2980.2,2979.4,2.4473]
[1767099611222,1.4395,2980.1,2979.4,2.4473]
[1767099613414,1.4395,2980.1,2979.5,3.35626783]
[1767099613608,1.4395,2980.1,2979.6,2.4473]
[1767099615139,1.4395,2980.1,2979.6,3.35612355]
[1767099615309,1.4395,2980.1,2979.7,2.4473]
[1767099619850,1.4395,2980.1,2979.5,2.4171]
[1767099621226,1.4395,2980.1,2979.6,3.35615518]
[1767099621425,1.4395,2980.1,2979.7,2.4171]
[1767099624653,1.4415,2980.1,2979.7,2.4171]
[1767099626554,1.4415,2980.1,2979.5,5.77431076]
[1767099627044,1.4415,2980.1,2979.6,3.35614097]
[1767099627236,1.4415,2980.1,2979.6,5.77324097]
[1767099628124,1.4415,2980.1,2979.7,2.4171]
[1767099628563,1.4415,2980.1,2979.7,5.77313694]
[1767099628766,1.4415,2980.1,2979.8,2.4171]
[1767099629857,0.002,2980.1,2979.8,2.4171]
[1767099632734,1.4415,2980.5,2979.9,2.4171]
[1767099633555,1.4415,2980.5,2979.8,11.63033371]
[1767099633857,1.4415,2980.5,2979.9,2.4171]
[1767099634751,0.883,2980.8,2980.1,2.4171]
[1767099634956,1.4435,2980.8,2980.1,2.4171]
[1767099636481,0.002,2980.8,2980.1,2.4171]
[1767099636848,0.002,2980.8,2980.3,2.4171]
[1767099637940,1.4435,2980.8,2980.3,2.4171]
[1767099640885,0.002,2980.8,2980.3,2.4171]
[1767099643190,4.91003977,2980.9,2980.3,3.35536662]
[1767099643490,7.24098101,2981.0,2980.4,2.4171]
[1767099644015,1.4415,2981.0,2980.4,2.4171]
[1767099644165,0.002,2981.4,2980.7,4.91848101]
[1767099644364,0.002,2981.4,2980.3,3.35536662]
[1767099644365,0.002,2981.4,2980.8,2.4171]
[1767099645059,6.36798101,2981.4,2980.8,2.4171]
[1767099645381,6.36598101,2981.2,2980.2,4.23645325]
[1767099645563,4.91848101,2981.0,2980.4,2.4171]
[1767099645764,4.91848101,2981.0,2980.5,2.4171]
[1767099646397,0.002,2980.8,2980.5,2.4171]
[1767099650102,2.3158,2980.8,2980.5,2.4171]
[1767099650316,2.3158,2980.8,2980.0,3.35567665]
[1767099650317,2.3138,2980.6,2980.0,3.35567665]
[1767099650488,2.3138,2980.3,2979.9,2.4857]
[1767099651885,4.91848101,2980.2,2979.8,2.4857]
[1767099652906,2.3138,2980.3,2979.8,2.4857]
[1767099653110,4.91848101,2980.2,2979.8,2.4857]
[1767099655206,1.27718101,2980.2,2979.7,3.3560275]
[1767099655510,2.3138,2980.3,2979.7,3.3560275]
[1767099655720,2.3138,2980.3,2979.6,3.35611542]
[1767099656086,4.91848101,2980.2,2979.6,3.35613109]
[1767099657715,4.91848101,2980.2,2979.5,0.001]
[1767099658096,2.3138,2980.3,2979.5,0.001]
[1767099660111,2.3138,2980.3,2979.5,3.35726783]
[1767099661392,2.4194,2980.5,2979.5,6.71353566]
[1767099661595,3.3024,2980.7,2979.6,4.95204256]
[1767099661818,0.002,2980.7,2980.1,4.91848101]
[1767099662289,0.002,2980.7,2980.0,3.35565063]
[1767099662897,0.002,2980.7,2980.1,3.35557835]
[1767099664525,0.002,2980.7,2979.6,8.27456553]
[1767099665025,0.002,2980.7,2979.7,0.03356042]
[1767099665490,0.002,2980.7,2979.6,3.35612966]
[1767099665788,0.002,2980.7,2979.6,0.03356155]
[1767099667099,0.002,2980.7,2979.7,6.7120851]
[1767099668824,0.002,2980.7,2979.8,0.03355929]
[1767099669061,0.002,2980.7,2980.0,3.35570469]
[1767099673509,2.4194,2981.7,2980.6,4.91843587]
[1767099673820,2.4194,2981.7,2980.6,0.881]
[1767099674314,2.4194,2981.5,2980.5,3.35506244]
[1767099674513,2.4194,2981.5,2980.6,4.23600816]
[1767099676023,0.002,2980.7,2980.6,4.23600816]
[1767099676205,2.4194,2981.5,2980.6,4.22641667]
[1767099679841,2.4194,2981.5,2980.6,7.58144585]
[1767099680828,0.002,2981.9,2980.6,7.58144585]
[1767099681132,2.4011,2981.8,2980.6,7.58144585]
[1767099681614,2.4011,2981.8,2980.6,4.22641667]
[1767099681815,2.4011,2981.6,2980.6,7.58144585]
[1767099682001,2.4011,2981.6,2980.7,0.881]
[1767099683635,2.4011,2981.4,2980.7,0.881]
[1767099684932,2.4011,2981.4,2980.7,4.23591644]
[1767099687525,0.002,2981.5,2980.7,4.23591644]
[1767099687733,0.002,2981.5,2980.8,0.03354804]
[1767099687926,3.35340522,2982.1,2980.7,12.50926894]
[1767099687927,2.4011,2982.2,2981.4,0.0076]
[1767099688241,2.4011,2982.4,2981.7,0.0076]
[1767099688721,2.4011,2982.2,2981.7,0.0076]
[1767099688929,2.4011,2982.2,2981.2,0.0076]
[1767099689108,2.4011,2982.0,2981.2,0.0076]
[1767099691107,2.4011,2981.8,2981.2,0.0076]
[1767099698048,2.4031,2981.8,2981.2,0.0076]
[1767099698268,2.4031,2981.8,2980.7,3.82789989]
[1767099698419,2.4031,2981.8,2980.2,8.27387805]
[1767099698420,2.4011,2981.3,2980.5,0.0086]
[1767099698618,3.2811,2981.2,2980.5,0.0086]
[1767099699247,0.88,2981.2,2980.5,0.0086]
[1767099699446,2.4011,2981.6,2980.5,0.0086]
[1767099699658,2.4011,2981.4,2980.6,0.0076]
[1767099699832,2.4011,2981.2,2980.6,0.0076]
[1767099701739,0.88,2981.1,2980.6,0.0076]
[1767099702037,3.2811,2981.1,2980.6,0.0076]
[1767099702949,2.4011,2981.0,2980.6,0.0076]
[1767099708570,3.35465816,2981.0,2980.5,0.001]
[1767099708764,3.35465816,2981.0,2979.6,0.001]
[1767099708765,2.3812,2980.8,2980.2,0.0076]
[1767099709850,2.3812,2980.7,2980.2,0.0076]
[1767099710051,2.3812,2980.7,2979.7,0.0076]
[1767099710254,2.3812,2980.5,2979.7,0.0076]
[1767099711534,2.3812,2980.3,2979.7,0.0076]
[1767099712232,2.3812,2980.2,2979.6,0.001]
[1767099713734,2.3812,2980.1,2979.6,0.001]
[1767099713939,2.3812,2979.9,2979.1,0.881]
[1767099715559,4.91843587,2979.7,2979.0,0.001]
[1767099715862,2.3812,2979.6,2979.0,0.001]
[1767099717770,2.3812,2979.4,2978.5,0.001]
[1767099717978,2.3812,2979.3,2978.5,0.001]
[1767099718337,1.15368098,2979.4,2978.6,3.35725979]
[1767099718536,3.35585004,2979.9,2978.9,4.91843587]
[1767099718537,0.881,2979.9,2978.9,4.91843587]
[1767099718873,0.881,2979.9,2979.0,0.03356831]
[1767099719446,0.881,2979.9,2978.9,4.91843587]
[1767099720489,2.3623,2980.4,2979.2,4.91843587]
[1767099720767,2.3623,2980.4,2979.3,0.03356493]
[1767099720979,0.881,2980.4,2979.3,0.03356493]
[1767099721281,2.3623,2980.5,2979.3,0.03356493]
[1767099721443,0.881,2980.4,2979.3,0.03356493]
[1767099722167,0.881,2980.4,2979.4,3.35638047]
[1767099722771,3.2433,2980.4,2979.4,3.35638047]
[1767099723882,0.881,2980.4,2979.5,4.95199854]
[1767099724181,0.883,2980.5,2979.6,3.35615518]
[1767099724389,2.3623,2980.4,2979.5,3.35625563]
[1767099724773,2.3623,2980.4,2979.4,3.35636682]
[1767099724974,2.3623,2980.4,2979.2,0.03356605]
[1767099725282,2.3623,2980.4,2979.1,4.23769869]
[1767099726381,2.3623,2980.2,2979.1,4.23769869]
[1767099726580,2.3623,2980.0,2979.1,4.23769869]
[1767099726783,2.3623,2979.9,2979.1,4.23769869]
[1767099727268,2.3623,2979.9,2979.1,9.15915588]
[1767099728282,2.3623,2979.9,2979.1,4.23769869]
[1767099729166,2.3623,2979.9,2979.1,0.881]
[1767099730382,2.3623,2979.9,2979.1,4.23769008]
[1767099731377,2.3623,2979.9,2979.1,0.881]
[1767099734098,2.36062201,2979.9,2979.2,0.0016]
[1767099743501,2.36062201,2979.9,2978.9,3.35694383]
[1767099743502,4.92145719,2979.3,2978.9,0.0016]
[1767099743667,0.881,2979.4,2978.9,0.0016]
[1767099744081,3.161,2979.6,2978.9,0.0016]
[1767099746410,0.881,2980.1,2979.4,4.92145719]
[1767099746572,2.28,2980.0,2979.5,0.0016]
[1767099747196,2.28,2980.0,2979.6,0.0016]
[1767099747500,0.881,2980.1,2979.6,0.0016]
[1767099748495,0.002,2979.9,2979.6,0.0016]
[1767099753122,2.282,2979.9,2979.3,0.0016]
[1767099753413,2.28,2979.7,2979.0,0.0016]
[1767099755307,2.28,2979.6,2979.0,0.0016]
[1767099756715,2.28,2979.5,2979.0,0.0016]
[1767099757612,3.35609612,2979.7,2979.1,0.0016]
[1767099757788,3.161,2979.7,2979.1,0.0016]
[1767099757986,0.65169732,2979.6,2979.1,0.0016]
[1767099758514,2.93169732,2979.6,2979.1,0.0016]
[1767099759589,0.6538723,2979.9,2979.2,4.92145719]
[1767099759787,0.002,2979.9,2979.3,0.03356493]
[1767099760519,0.002,2979.9,2979.2,4.92145719]
[1767099760693,0.002,2979.9,2979.0,11.63611949]
[1767099760899,0.002,2979.9,2979.2,4.92145719]
[1767099761300,0.002,2980.4,2979.6,4.92145719]
[1767099761301,0.881,2980.2,2979.6,4.92145719]
[1767099761511,2.28,2980.3,2979.6,4.92145719]
[1767099761688,2.28,2980.3,2979.4,4.92145719]
[1767099762520,2.28,2980.3,2979.6,4.92145719]
[1767099762818,0.883,2980.4,2979.9,4.92145719]
[1767099762819,0.002,2980.4,2979.9,4.92145719]
[1767099763024,0.002,2980.4,2979.7,4.92145719]
[1767099765119,0.002,2980.4,2979.5,4.92145719]
[1767099765296,2.282,2980.4,2979.5,4.92145719]
[1767099767428,2.282,2980.4,2979.5,8.27771702]
[1767099768526,0.002,2980.4,2979.8,4.92145719]
[1767099769202,2.363,2980.4,2979.8,4.92145719]
[1767099771227,2.363,2980.4,2979.6,4.92145719]
[1767099774732,2.363,2980.4,2979.8,0.001]
[1767099776830,2.361,2980.3,2979.8,0.001]
[1767099778032,2.361,2980.1,2979.5,0.001]
[1767099778331,2.361,2980.0,2979.5,0.001]
[1767099780034,2.361,2979.9,2979.2,0.001]
[1767099780214,2.361,2979.7,2979.2,0.001]
[1767099782236,2.437,2979.9,2979.2,0.001]
[1767099784823,2.437,2979.8,2979.2,0.001]
[1767099785150,3.3558183,2979.9,2979.1,0.001]
[1767099785151,2.437,2979.5,2979.1,0.001]
[1767099785441,2.437,2979.3,2979.1,0.001]
[1767099789350,3.3561801,2979.6,2978.6,0.003]
[1767099789351,2.437,2979.2,2978.6,0.003]
[1767099789652,2.437,2979.2,2978.7,0.002]
[1767099791518,2.437,2978.8,2978.3,0.001]
[1767099792036,0.2437,2979.1,2978.3,0.001]
[1767099792236,2.437,2979.7,2978.5,4.92263995]
[1767099792550,2.437,2979.5,2978.5,4.92263995]
[1767099793178,2.437,2979.5,2978.3,0.04464821]
[1767099793473,2.437,2979.3,2978.3,0.001]
[1767099794245,2.437,2979.3,2978.3,3.35860292]
[1767099794460,0.57933805,2979.2,2978.3,3.35860292]
[1767099794659,2.437,2979.1,2978.3,0.001]
[1767099795243,2.437,2979.0,2978.3,0.001]
[1767099799459,2.4483,2979.4,2978.3,0.001]
[1767099799665,0.881,2979.3,2978.3,0.0345762]
[1767099799876,2.4483,2979.7,2978.8,4.92263995]
[1767099800048,0.002,2979.8,2978.9,0.03356943]
[1767099800251,2.4503,2979.8,2979.0,3.35683115]
[1767099800455,2.4503,2979.8,2979.1,4.92263995]
[1767099800456,0.002,2979.8,2979.1,4.92263995]
[1767099800849,0.002,2979.8,2979.0,3.35683115]
[1767099805076,0.002,2979.8,2978.9,3.35694383]
[1767099807192,0.002,2979.8,2978.9,6.71388766]
[1767099808359,0.002,2979.8,2978.9,6.74745709]
[1767099808560,2.4483,2979.7,2978.9,3.35694383]
[1767099809501,2.4483,2979.7,2978.8,3.35702548]
[1767099809502,2.4483,2979.7,2978.8,6.71408201]
[1767099809856,0.002,2979.8,2978.8,11.63672196]
[1767099810061,0.002,2979.8,2978.9,0.03356943]
[1767099814000,0.002,2979.8,2979.0,6.7136623]
[1767099814299,0.002,2979.8,2979.1,0.03356718]
[1767099816583,0.002,2979.8,2979.2,3.3566058]
[1767099818003,0.002,2979.8,2979.3,0.03356493]
[1767099818405,2.4503,2980.4,2979.6,4.92263995]
[1767099818569,2.4503,2980.4,2979.6,8.27877347]
[1767099818771,0.002,2980.4,2979.6,8.27877347]
[1767099819170,0.002,2980.4,2979.6,3.35613352]
[1767099819424,2.4483,2980.3,2979.2,3.82789989]
[1767099819702,2.4483,2979.9,2979.2,3.82789989]
[1767099820097,2.4503,2979.8,2979.2,3.82789989]
[1767099820269,2.4503,2979.8,2979.0,4.2377766]
[1767099821174,2.4503,2979.8,2979.1,3.35669192]
[1767099821375,2.69333,2979.7,2979.0,4.23780334]
[1767099822105,2.69333,2979.7,2979.0,0.881]
[1767099822607,2.69333,2979.7,2978.7,3.39070519]
[1767099822807,2.4483,2979.6,2978.3,0.0345762]
[1767099822971,2.4483,2979.4,2978.4,3.35845301]
[1767099823307,2.4483,2979.3,2978.4,0.001]
[1767099823517,0.881,2979.3,2978.4,0.001]
[1767099823672,2.4483,2979.2,2978.4,0.001]
[1767099830602,2.4483,2979.2,2978.4,0.03457507]
[1767099831925,0.761597,2979.5,2978.5,3.35739466]
[1767099832107,1.642597,2979.5,2978.6,0.03357281]
[1767099832306,3.909097,2979.5,2978.5,3.35739466]
[1767099832530,1.642597,2979.5,2978.6,0.03357281]
[1767099832738,2.2665,2979.4,2978.6,0.03357281]
[1767099832937,0.3909097,2979.3,2978.6,0.03357281]
[1767099834737,2.2665,2979.2,2978.6,0.03357281]
[1767099834909,2.2665,2979.2,2978.4,0.001]
[1767099835721,2.2665,2979.2,2978.5,3.35730844]
[1767099835920,2.2665,2979.2,2978.6,0.03357281]
[1767099836123,0.26574097,2979.2,2978.6,3.39083446]
[1767099836419,3.028097,2979.5,2978.6,3.39083446]
[1767099836622,2.2665,2979.4,2978.6,3.39083446]
[1767099837002,2.2665,2979.4,2978.6,0.03357281]
[1767099839737,2.2665,2979.4,2978.6,3.39083077]
[1767099843033,2.4613,2979.7,2978.8,4.92263995]
[1767099843340,0.002,2979.8,2978.8,4.95621051]
[1767099843714,2.4633,2979.8,2978.8,4.95621051]
[1767099844711,2.4633,2979.8,2978.9,3.35694383]
[1767099844921,2.4633,2979.8,2978.9,3.39051326]
[1767099845141,2.4633,2979.8,2978.9,6.74745709]
[1767099846013,2.4633,2979.8,2978.9,3.39051326]
[1767099846219,2.4633,2979.8,2978.9,6.74745709]
[1767099846722,2.4633,2979.8,2978.9,3.39051326]
[1767099847444,2.4613,2979.7,2978.8,3.35698255]
[1767099847743,2.4613,2979.7,2978.8,3.35698087]
[1767099847924,2.70763,2979.6,2978.8,3.35698087]
[1767099848126,2.70763,2979.6,2978.7,4.23810961]
[1767099848326,2.70763,2979.6,2978.7,3.35710961]
[1767099848823,2.4613,2979.3,2978.5,0.881]
[1767099849021,3.19969896,2979.2,2978.6,3.35726298]
[1767099849216,2.4613,2979.2,2978.6,3.35726298]
[1767099852252,2.4633,2979.8,2979.1,4.92268961]
[1767099852540,0.002,2979.8,2979.3,4.92268961]
[1767099853439,0.002,2979.8,2979.1,4.92268961]